[Event "1000GM Spring IM-C 2024"]
[Site "New York"]
[Date "2024.03.31"]
[Round "7.5"]
[White "Atwell, Rose"]
[Black "Tang, Zoey"]
[Result "1/2-1/2"]
[ECO "B30"]
[WhiteElo "2285"]
[BlackElo "2253"]
[Annotator "RC"]
[PlyCount "198"]
[EventDate "2024.03.26"]
[EventType "tourn"]
[EventCountry "USA"]
[SourceTitle "playchess.com"]
[Source "ChessBase"]
[SourceQuality "1"]
[TimeControl "5400+30"]

1. e4 {[%emt 0:00:01]} c5 {[%emt 0:00:03]} 2. Nf3 {[%emt 0:00:05]} Nc6 {[%emt 0:00:03]} 3. Bb5 {[%emt 0:00:06]} e6 {[%emt 0:00:05]} 4. O-O {[%emt 0:00:05]} Nge7 {[%emt 0:00:05]} 5. Re1 {[%emt 0:00:05]} a6 {[%emt 0:00:05]} 6. Bf1 {[%emt 0:00:06]} d5 {[%emt 0:00:03]} 7. exd5 {[%emt 0:00:13]} Nxd5 {[%emt 0:00:04]} 8. d4 {[%emt 0:00:14]} Nf6 {[%emt 0:00:18]} 9. Be3 {[%emt 0:00:40]} Be7 {[%emt 0:00:04]} 10. c4 {[%emt 0:03:42]} O-O {[%emt 0:00:16]} 11. Nc3 {[%emt 0:00:36]} b6 {[%emt 0:00:12]} 12. Qd2 {[%emt 0:08:55]} Bb7 {[%emt 0:00:23]} 13. Rad1 {[%emt 0:01:09]} cxd4 {[%emt 0:00:11]} 14. Nxd4 {[%emt 0:00:12]} Qb8 {[%emt 0:00:40]} 15. h3 {[%emt 0:04:18]} Rd8 {[%emt 0:00:10]} 16. Qc1 {[%emt 0:02:01]} Nxd4 {[%emt 0:01:50]} 17. Bxd4 {[%emt 0:00:14]} Bc6 {[%emt 0:00:07]} 18. a4 {[%emt 0:06:35]} Qb7 {[%emt 0:08:50]} 19. Qe3 {[%emt 1:10:43]} Rab8 20. Qg3 Bd6 21. Qg5 h6 22. Qe3 Ne8 {[%emt 0:26:12]} 23. b3 {[%emt 0:00:00]} Qc7 {[%emt 0:03:20]} 24. g3 {[%emt 0:00:00]} Ba8 {[%emt 0:07:20]} 25. Bg2 {[%emt 0:00:00]} Bxg2 {[%emt 0:00:17]} 26. Kxg2 {[%emt 0:00:00]} Bb4 {[%emt 0:04:01]} 27. Re2 {[%emt 0:00:00]} Nd6 {[%emt 0:11:45]} 28. g4 {[%emt 0:00:00]} Bc5 {[%emt 0:02:53]} 29. Red2 {[%emt 0:00:00]} Nb7 {[%emt 0:05:25]} 30. Qe5 {[%emt 0:00:00]} Qc6+ {[%emt 0:02:22]} 31. Qe4 {[%emt 0:00:00]} Qxe4+ {[%emt 0:03:05]} 32. Nxe4 {[%emt 0:00:00]} Bxd4 {[%emt 0:03:02]} 33. Rxd4 {[%emt 0:00:00]} Rxd4 {[%emt 0:00:02]} 34. Rxd4 {[%emt 0:00:00]} Nc5 {[%emt 0:00:52]} 35. Nxc5 {[%emt 0:00:00]} bxc5 {[%emt 0:00:05]} 36. Rd3 {[%emt 0:00:00]} g5 {[%emt 0:06:10]} 37. Kf3 {[%emt 0:00:00]} Kf8 {[%emt 0:01:14]} 38. a5 {[%emt 0:00:00]} Ke7 {[%emt 0:00:27]} 39. Ke2 {[%emt 0:00:00]} f6 {[%emt 0:01:20]} 40. Rc3 {[%emt 0:00:00]} Rd8 {[%emt 0:01:57]} 41. h4 {[%emt 0:01:26]} gxh4 {[%emt 0:08:08]} 42. Rh3 {[%emt 0:00:07]} Kf7 {[%emt 0:00:03]} 43. Rxh4 {[%emt 0:00:16]} Kg6 {[%emt 0:00:04]} 44. Rh3 {[%emt 0:02:09]} Rd4 {[%emt 0:00:57]} 45. Re3 {[%emt 0:01:37]} Kf7 {[%emt 0:01:01]} 46. f3 {[%emt 0:00:31]} Ke7 {[%emt 0:04:37]} 47. Rc3 {[%emt 0:03:39]} h5 {[%emt 0:01:11]} 48. gxh5 {[%emt 0:00:05]} Rh4 {[%emt 0:00:04]} 49. Rc1 {[%emt 0:00:56]} Rxh5 {[%emt 0:00:18]} 50. Rg1 {[%emt 0:00:13]} Rh2+ {[%emt 0:01:51]} 51. Kd3 {[%emt 0:00:05]} Ra2 {[%emt 0:00:09]} 52. Rg7+ {[%emt 0:00:19]} Kd6 {[%emt 0:00:34]} 53. f4 {[%emt 0:00:39]} Rxa5 {[%emt 0:00:47]} 54. Rb7 {[%emt 0:01:13]} Ra2 {[%emt 0:00:38]} 55. Rb6+ {[%emt 0:00:25]} Kd7 {[%emt 0:00:05]} 56. f5 {[%emt 0:01:58]} exf5 {[%emt 0:00:59]} 57. Rxf6 {[%emt 0:00:02]} Rf2 {[%emt 0:01:17]} 58. Rxa6 {[%emt 0:00:43]} Rf3+ {[%emt 0:00:04]} 59. Ke2 {[%emt 0:01:16]} Rxb3 {[%emt 0:00:07]} 60. Rf6 {[%emt 0:00:09]} Rc3 {[%emt 0:00:14]} 61. Rxf5 {[%emt 0:00:10]} Rxc4 {[%emt 0:00:08]} 62. Kd3 {[%emt 0:00:18]} Rc1 {[%emt 0:00:23]} 63. Kd2 {[%emt 0:00:09]} Rc4 {[%emt 0:00:04]} 64. Kd3 {[%emt 0:00:03]} Rd4+ {[%emt 0:00:03]} 65. Kc3 {[%emt 0:00:05]} Kc6 {[%emt 0:00:04]} 66. Rf3 {[%emt 0:00:21]} Rh4 {[%emt 0:00:18]} 67. Re3 {[%emt 0:00:09]} Kb5 {[%emt 0:00:10]} 68. Rf3 {[%emt 0:00:11]} Ra4 {[%emt 0:00:46]} 69. Kb2 {[%emt 0:00:06]} Rb4+ {[%emt 0:00:08]} 70. Kc2 {[%emt 0:00:05]} Rc4+ {[%emt 0:00:16]} 71. Kb2 {[%emt 0:00:05]} Ra4 {[%emt 0:00:14]} 72. Re3 {[%emt 0:07:00]} Kb4 {[%emt 0:00:30]} 73. Rb3+ {[%emt 0:00:00]} Kc4 {[%emt 0:00:04]} 74. Rc3+ {[%emt 0:00:00]} Kd4 {[%emt 0:00:05]} 75. Rg3 {[%emt 0:00:00]} c4 {[%emt 0:00:56]} 76. Rg4+ {[%emt 0:00:00]} Kc5 {[%emt 0:00:04]} 77. Rg8 {[%emt 0:00:00]} Rb4+ {[%emt 0:00:20]} 78. Kc2 {[%emt 0:00:00]} Rb7 {[%emt 0:00:13]} 79. Rg3 {[%emt 0:00:00]} Ra7 {[%emt 0:00:44]} 80. Rg8 {[%emt 0:00:00]} Rb7 {[%emt 0:00:56]} 81. Rf8 {[%emt 0:00:00]} Kb4 {[%emt 0:00:20]} 82. Rg8 {[%emt 0:00:00]} Rb5 {[%emt 0:00:05]} 83. Rf8 {[%emt 0:00:00]} Rd5 {[%emt 0:00:42]} 84. Rb8+ {[%emt 0:00:00]} Kc5 {[%emt 0:00:05]} 85. Rg8 {[%emt 0:00:00]} Kd4 {[%emt 0:00:32]} 86. Rg4+ {[%emt 0:00:00]} Kc5 {[%emt 0:00:04]} 87. Rg8 {[%emt 0:00:00]} Re5 {[%emt 0:00:40]} 88. Rc8+ {[%emt 0:00:00]} Kd4 {[%emt 0:00:09]} 89. Rd8+ {[%emt 0:00:00]} Kc5 {[%emt 0:00:06]} 90. Rc8+ {[%emt 0:00:00]} Kb4 {[%emt 0:00:03]} 91. Rb8+ {[%emt 0:00:00]} Rb5 {[%emt 0:00:04]} 92. Rxb5+ {[%emt 0:00:00]} Kxb5 {[%emt 0:00:02]} 93. Kc3 {[%emt 0:00:00]} Kc5 {[%emt 0:00:03]} 94. Kc2 {[%emt 0:00:00]} Kb4 {[%emt 0:00:03]} 95. Kb2 {[%emt 0:00:00]} c3+ {[%emt 0:00:03]} 96. Kc2 {[%emt 0:00:00]} Kc4 {[%emt 0:00:02]} 97. Kc1 {[%emt 0:00:00]} Kb3 {[%emt 0:00:03]} 98. Kb1 {[%emt 0:00:00]} c2+ {[%emt 0:00:03]} 99. Kc1 {[%emt 0:00:00]} Kc3 {[%emt 0:00:02]} 1/2-1/2

[Event "1000GM Spring IM-C 2024"]
[Site "New York"]
[Date "2024.03.31"]
[Round "8.1"]
[White "Pang, Qi"]
[Black "Tang, Zoey"]
[Result "1/2-1/2"]
[ECO "D16"]
[WhiteElo "2195"]
[BlackElo "2253"]
[Annotator "ChessBase"]
[PlyCount "139"]
[EventDate "2024.03.26"]
[EventType "tourn"]
[EventCountry "USA"]
[SourceTitle "playchess.com"]
[Source "ChessBase"]
[SourceQuality "1"]
[TimeControl "5400+30"]

1. Nf3 {[%emt 0:02:48]} d5 {[%emt 0:00:04]} 2. d4 {[%emt 0:00:03]} Nf6 {[%emt 0:00:06]} 3. c4 {[%emt 0:00:06]} c6 {[%emt 0:00:07]} 4. Nc3 {[%emt 0:04:18]} dxc4 {[%emt 0:00:14]} 5. a4 {[%emt 0:00:08]} e6 {[%emt 0:00:09]} 6. e3 {[%emt 0:01:15]} c5 {[%emt 0:00:08]} 7. Bxc4 {[%emt 0:00:49]} Nc6 {[%emt 0:00:03]} 8. O-O {[%emt 0:00:32]} cxd4 {[%emt 0:00:10]} 9. exd4 {[%emt 0:00:08]} Be7 {[%emt 0:00:16]} 10. Qe2 {[%emt 0:03:04]} O-O {[%emt 0:00:38]} 11. Rd1 {[%emt 0:00:14]} Nb4 {[%emt 0:04:05]} 12. Ne5 {[%emt 0:03:54]} Nbd5 {[%emt 0:12:00]} 13. Rd3 {[%emt 0:05:58]} Bd7 {[%emt 0:05:43]} 14. Rg3 {[%emt 0:02:17]} Kh8 {[%emt 0:05:55]} 15. Bg5 {[%emt 0:14:28]} Bc6 {[%emt 0:03:16]} 16. Rh3 {[%emt 0:04:35]} Kg8 {[%emt 0:04:40]} 17. Bd3 {[%emt 0:13:00]} g6 {[%emt 0:03:34]} 18. Re1 {[%emt 0:01:04]} Nxc3 {[%emt 0:58:22]} 19. bxc3 {[%emt 0:00:06]} Nd5 {[%emt 0:00:00]} 20. Bh6 {[%emt 0:07:26]} Bg5 {[%emt 0:00:00]} 21. Bxf8 {[%emt 0:06:52]} Nf4 {[%emt 0:00:00]} 22. Qg4 {[%emt 0:02:08]} Nxh3+ {[%emt 0:00:00]} 23. Qxh3 {[%emt 0:00:04]} Qxf8 {[%emt 0:00:00]} 24. Bc4 {[%emt 0:02:34]} Bd5 {[%emt 0:00:00]} 25. Bxd5 {[%emt 0:02:30]} exd5 {[%emt 0:00:00]} 26. Qd7 {[%emt 0:01:29]} Bd2 {[%emt 0:00:00]} 27. Rb1 {[%emt 0:00:33]} Rd8 {[%emt 0:00:00]} 28. Qxb7 {[%emt 0:00:34]} Bxc3 {[%emt 0:00:00]} 29. Nc6 {[%emt 0:00:31]} Re8 {[%emt 0:00:00]} 30. Qxa7 {[%emt 0:02:19]} Qd6 {[%emt 0:00:00]} 31. Qb7 {[%emt 0:01:37]} Qf6 {[%emt 0:00:00]} 32. Qb5 {[%emt 0:01:36]} Re6 {[%emt 0:01:10]} 33. Ne5 {[%emt 0:02:33]} Bxd4 {[%emt 0:00:20]} 34. Nf3 {[%emt 0:00:10]} Rb6 {[%emt 0:01:52]} 35. Qd3 {[%emt 0:00:13]} Rxb1+ {[%emt 0:00:29]} 36. Qxb1 {[%emt 0:00:02]} Bb6 {[%emt 0:02:09]} 37. h3 {[%emt 0:00:57]} Qc6 {[%emt 0:00:30]} 38. Qb2 {[%emt 0:05:19]} Qc5 {[%emt 0:00:56]} 39. Ne5 {[%emt 0:00:46]} Qd6 {[%emt 0:01:38]} 40. Nd3 {[%emt 0:00:08]} Bc7 {[%emt 0:00:24]} 41. g3 {[%emt 0:00:24]} Bb6 {[%emt 0:00:57]} 42. Kh2 {[%emt 0:02:47]} d4 {[%emt 0:00:26]} 43. Qb5 {[%emt 0:00:24]} Qd8 {[%emt 0:00:20]} 44. Qc4 {[%emt 0:01:14]} Kg7 {[%emt 0:00:37]} 45. Qc6 {[%emt 0:00:25]} h5 {[%emt 0:00:25]} 46. h4 {[%emt 0:00:11]} Qf6 {[%emt 0:00:39]} 47. Qb5 {[%emt 0:00:54]} Bc7 {[%emt 0:00:24]} 48. Kg2 {[%emt 0:00:17]} Qd8 {[%emt 0:00:31]} 49. Qc4 {[%emt 0:00:45]} Qd7 {[%emt 0:00:49]} 50. Qb4 {[%emt 0:02:11]} Qd5+ {[%emt 0:00:20]} 51. Kg1 {[%emt 0:00:14]} Qe4 {[%emt 0:00:52]} 52. Qc4 {[%emt 0:00:58]} Ba5 {[%emt 0:00:30]} 53. Nf4 {[%emt 0:00:22]} Qe1+ {[%emt 0:00:26]} 54. Kg2 {[%emt 0:00:24]} Qe4+ {[%emt 0:00:08]} 55. Kh2 {[%emt 0:00:49]} Be1 {[%emt 0:00:36]} 56. Qd3 {[%emt 0:00:44]} Qe5 {[%emt 0:00:24]} 57. Kg2 {[%emt 0:00:21]} Ba5 {[%emt 0:00:16]} 58. Qf3 {[%emt 0:01:25]} Qe8 {[%emt 0:00:40]} 59. Nd5 {[%emt 0:01:51]} Qe6 {[%emt 0:00:21]} 60. Kh2 {[%emt 0:00:14]} Bd8 {[%emt 0:00:49]} 61. Nf4 {[%emt 0:00:23]} Qd7 {[%emt 0:00:30]} 62. Qb3 {[%emt 0:00:30]} Bc7 {[%emt 0:00:43]} 63. Qb7 {[%emt 0:01:20]} Qd6 {[%emt 0:00:39]} 64. Qe4 {[%emt 0:00:44]} Qf6 {[%emt 0:00:16]} 65. Nd3 {[%emt 0:00:09]} Qd6 {[%emt 0:00:41]} 66. Kg2 {[%emt 0:00:08]} Qd7 {[%emt 0:00:14]} 67. Qb7 {[%emt 0:01:35]} Qd6 {[%emt 0:00:22]} 68. Qb5 {[%emt 0:00:11]} Qe6 {[%emt 0:00:16]} 69. Qb7 {[%emt 0:01:50]} Ba5 {[%emt 0:00:26]} 70. Qb5 {[%emt 0:00:38]} 1/2-1/2

[Event "1000GM Spring IM-C 2024"]
[Site "New York"]
[Date "2024.03.31"]
[Round "8.2"]
[White "Yang, Qindong"]
[Black "Atwell, Rose"]
[Result "1/2-1/2"]
[ECO "D15"]
[WhiteElo "2234"]
[BlackElo "2285"]
[Annotator "RC"]
[PlyCount "124"]
[EventDate "2024.03.26"]
[EventType "tourn"]
[EventCountry "USA"]
[SourceTitle "playchess.com"]
[Source "ChessBase"]
[SourceQuality "1"]
[TimeControl "5400+30"]

1. d4 {[%emt 0:03:54]} d5 {[%emt 0:00:06]} 2. c4 {[%emt 0:00:40]} c6 {[%emt 0:00:05]} 3. Nf3 {[%emt 0:00:25]} Nf6 {[%emt 0:00:06]} 4. Nc3 {[%emt 0:00:03]} dxc4 {[%emt 0:00:05]} 5. e4 {[%emt 0:00:38]} b5 {[%emt 0:00:05]} 6. Be2 {[%emt 0:00:11]} e6 {[%emt 0:00:28]} 7. a4 {[%emt 0:00:31]} b4 {[%emt 0:05:17]} 8. e5 {[%emt 0:03:12]} bxc3 {[%emt 0:00:56]} 9. exf6 {[%emt 0:00:01]} cxb2 {[%emt 0:00:08]} 10. fxg7 {[%emt 0:00:04]} bxa1=Q {[%emt 0:02:26]} 11. gxh8=Q {[%emt 1:26:21]} Qa5+ {[%emt 0:00:15]} 12. Nd2 {[%emt 0:00:00]} c3 {[%emt 0:00:39]} 13. O-O {[%emt 0:00:00]} cxd2 {[%emt 0:00:05]} 14. Bxd2 {[%emt 0:00:00]} Qxd1 {[%emt 0:00:12]} 15. Rxd1 {[%emt 0:00:00]} Qf5 {[%emt 0:00:42]} 16. d5 {[%emt 0:00:00]} Qg6 {[%emt 0:01:20]} 17. Qe5 {[%emt 0:00:00]} Nd7 {[%emt 0:23:56]} 18. Qc7 {[%emt 0:00:00]} exd5 {[%emt 0:13:02]} 19. Bh5 {[%emt 0:00:00]} Qf6 {[%emt 0:10:18]} 20. Re1+ {[%emt 0:00:00]} Be7 {[%emt 0:00:15]} 21. Bg4 {[%emt 0:00:00]} Kf8 {[%emt 0:21:34]} 22. Bxd7 {[%emt 0:00:00]} Bxd7 {[%emt 0:00:27]} 23. Qxd7 {[%emt 0:00:00]} Bc5 {[%emt 0:00:06]} 24. Be3 {[%emt 0:00:00]} d4 {[%emt 0:02:49]} 25. Bd2 {[%emt 0:00:00]} d3 {[%emt 0:03:12]} 26. Rf1 {[%emt 0:00:00]} Rd8 {[%emt 0:01:57]} 27. Qh3 {[%emt 0:00:00]} Kg8 {[%emt 0:00:17]} 28. Qg4+ {[%emt 0:00:00]} Qg6 {[%emt 0:00:32]} 29. Qc4 {[%emt 0:00:00]} Bd4 {[%emt 0:01:02]} 30. Be3 {[%emt 0:06:06]} Bxe3 {[%emt 0:03:35]} 31. fxe3 {[%emt 0:00:03]} d2 {[%emt 0:01:28]} 32. Qe2 {[%emt 0:00:50]} c5 {[%emt 0:02:03]} 33. Rd1 {[%emt 0:00:21]} Qc2 {[%emt 0:00:52]} 34. Qg4+ {[%emt 0:00:16]} Kf8 {[%emt 0:00:19]} 35. Qh5 {[%emt 0:00:33]} Rd6 {[%emt 0:01:13]} 36. Qg4 {[%emt 0:01:19]} Rd8 {[%emt 0:03:35]} 37. Qh5 {[%emt 0:00:32]} Rd7 {[%emt 0:01:25]} 38. h3 {[%emt 0:01:18]} c4 {[%emt 0:00:42]} 39. Qc5+ {[%emt 0:02:42]} Kg8 {[%emt 0:00:25]} 40. Qc8+ {[%emt 0:00:00]} Kg7 {[%emt 0:00:02]} 41. Qxd7 {[%emt 0:00:01]} Qxd1+ {[%emt 0:00:04]} 42. Kh2 {[%emt 0:00:03]} Qe2 {[%emt 0:02:00]} 43. Qd4+ {[%emt 0:00:23]} f6 {[%emt 0:00:17]} 44. Qd7+ {[%emt 0:00:31]} Kg6 {[%emt 0:00:28]} 45. Qe8+ {[%emt 0:00:27]} Kf5 {[%emt 0:00:19]} 46. Qd7+ {[%emt 0:00:44]} Ke5 {[%emt 0:00:07]} 47. Qd4+ {[%emt 0:01:04]} Ke6 {[%emt 0:00:01]} 48. Qe4+ {[%emt 0:00:10]} Kd6 {[%emt 0:00:21]} 49. Qd4+ {[%emt 0:00:16]} Kc6 {[%emt 0:00:22]} 50. Qxf6+ {[%emt 0:00:25]} Kc5 {[%emt 0:00:14]} 51. Qe7+ {[%emt 0:00:30]} Kb6 {[%emt 0:00:06]} 52. Qb4+ {[%emt 0:00:42]} Kc6 {[%emt 0:00:04]} 53. Qb5+ {[%emt 0:00:10]} Kd6 {[%emt 0:00:05]} 54. Qb8+ {[%emt 0:00:23]} Kd5 {[%emt 0:00:08]} 55. Qd8+ {[%emt 0:00:29]} Kc6 {[%emt 0:00:10]} 56. Qe8+ {[%emt 0:00:46]} Kd6 {[%emt 0:00:18]} 57. Qd8+ {[%emt 0:00:17]} Kc5 {[%emt 0:00:05]} 58. Qe7+ {[%emt 0:00:10]} Kc6 {[%emt 0:00:15]} 59. Qe8+ {[%emt 0:00:30]} Kd5 {[%emt 0:00:39]} 60. Qd7+ {[%emt 0:00:17]} Ke5 {[%emt 0:00:09]} 61. Qe7+ {[%emt 0:01:06]} Kd5 {[%emt 0:00:16]} 62. Qd7+ {[%emt 0:00:12]} Ke5 {[%emt 0:07:01]} 1/2-1/2

[Event "1000GM Spring IM-C 2024"]
[Site "New York"]
[Date "2024.03.31"]
[Round "8.3"]
[White "Tanenbaum, Zachary"]
[Black "Lekic, Dusan"]
[Result "1-0"]
[ECO "B62"]
[WhiteElo "2260"]
[BlackElo "2320"]
[Annotator "RC"]
[PlyCount "73"]
[EventDate "2024.03.26"]
[EventType "tourn"]
[EventCountry "USA"]
[SourceTitle "playchess.com"]
[Source "ChessBase"]
[SourceQuality "1"]
[TimeControl "5400+30"]

1. e4 {[%emt 0:21:15]} c5 {[%emt 0:03:12]} 2. Nf3 {[%emt 0:00:05]} d6 {[%emt 0:00:08]} 3. d4 {[%emt 0:00:01]} cxd4 {[%emt 0:00:19]} 4. Nxd4 {[%emt 0:00:03]} Nf6 {[%emt 0:00:10]} 5. Nc3 {[%emt 0:00:01]} Nc6 {[%emt 0:03:12]} 6. Bg5 {[%emt 0:00:04]} e6 {[%emt 0:00:04]} 7. Bb5 {[%emt 0:00:05]} Bd7 {[%emt 0:00:34]} 8. Qd3 {[%emt 0:00:01]} h6 {[%emt 0:00:09]} 9. Bh4 {[%emt 0:00:04]} Be7 {[%emt 0:00:12]} 10. O-O-O {[%emt 0:00:13]} O-O {[%emt 0:00:09]} 11. Bxc6 {[%emt 0:00:26]} bxc6 {[%emt 0:00:14]} 12. Nb3 {[%emt 0:00:13]} d5 {[%emt 0:00:07]} 13. e5 {[%emt 0:00:16]} Ne8 {[%emt 0:00:06]} 14. Bxe7 {[%emt 0:00:07]} Qxe7 {[%emt 0:00:06]} 15. Qd4 {[%emt 0:00:08]} f6 {[%emt 0:00:07]} 16. Rhe1 {[%emt 0:15:37]} fxe5 {[%emt 0:01:56]} 17. Rxe5 {[%emt 0:00:39]} Nd6 {[%emt 0:00:29]} 18. Qc5 {[%emt 0:06:19]} Rf7 {[%emt 0:03:39]} 19. Rde1 {[%emt 0:13:32]} Qf8 {[%emt 0:02:01]} 20. R5e2 {[%emt 0:12:21]} Qb8 {[%emt 0:01:02]} 21. g3 {[%emt 0:03:22]} a5 {[%emt 0:05:18]} 22. Na4 {[%emt 0:15:39]} Ne4 {[%emt 0:14:33]} 23. Qb6 {[%emt 0:00:39]} Qf8 {[%emt 0:02:39]} 24. Nbc5 {[%emt 0:02:14]} Rxf2 {[%emt 0:00:54]} 25. Rxe4 {[%emt 0:00:55]} dxe4 {[%emt 0:00:33]} 26. Nxd7 {[%emt 0:00:03]} Qf5 {[%emt 0:02:07]} 27. Qe3 {[%emt 0:05:19]} Rxh2 {[%emt 0:01:03]} 28. Qxe4 {[%emt 0:00:48]} Qxe4 {[%emt 0:03:41]} 29. Rxe4 {[%emt 0:00:01]} Rh3 {[%emt 0:00:08]} 30. g4 {[%emt 0:01:19]} h5 {[%emt 0:01:07]} 31. gxh5 {[%emt 0:00:16]} Rxh5 {[%emt 0:01:19]} 32. Rxe6 {[%emt 0:04:25]} Rh1+ {[%emt 0:02:20]} 33. Kd2 {[%emt 0:00:00]} Rh6 {[%emt 0:00:09]} 34. Re7 {[%emt 0:00:00]} g5 {[%emt 0:01:33]} 35. Nac5 {[%emt 0:00:00]} g4 {[%emt 0:00:23]} 36. Ne4 {[%emt 0:00:00]} Kh8 {[%emt 0:00:33]} 37. Ne5 {[%emt 0:00:00]} 1-0

[Event "1000GM Spring IM-C 2024"]
[Site "New York"]
[Date "2024.03.31"]
[Round "8.4"]
[White "Savanovic, Aleksandar"]
[Black "Andrews, Todd"]
[Result "1-0"]
[ECO "C19"]
[WhiteElo "2361"]
[BlackElo "2160"]
[Annotator "RC"]
[PlyCount "97"]
[EventDate "2024.03.26"]
[EventType "tourn"]
[EventCountry "USA"]
[SourceTitle "playchess.com"]
[Source "ChessBase"]
[SourceQuality "1"]
[TimeControl "5400+30"]

1. e4 {[%emt 0:00:30]} e6 {[%emt 0:06:15]} 2. d4 {[%emt 0:00:00]} d5 {[%emt 0:00:05]} 3. Nc3 {[%emt 0:00:00]} Bb4 {[%emt 0:00:06]} 4. e5 {[%emt 0:00:00]} c5 {[%emt 0:00:06]} 5. a3 {[%emt 0:00:00]} Bxc3+ {[%emt 0:00:07]} 6. bxc3 {[%emt 0:00:05]} Ne7 {[%emt 0:00:08]} 7. a4 {[%emt 0:00:33]} Qc7 {[%emt 0:01:34]} 8. Nf3 {[%emt 0:00:10]} h6 {[%emt 0:00:38]} 9. Bb5+ {[%emt 0:00:32]} Bd7 {[%emt 0:00:33]} 10. Bd3 {[%emt 0:00:09]} Nbc6 {[%emt 0:00:48]} 11. O-O {[%emt 0:00:11]} b6 {[%emt 0:00:39]} 12. Re1 {[%emt 0:09:20]} O-O {[%emt 0:11:55]} 13. Bf4 {[%emt 0:19:30]} f5 {[%emt 0:28:41]} 14. exf6 {[%emt 0:05:57]} Qxf4 {[%emt 0:01:27]} 15. fxe7 {[%emt 0:00:08]} Nxe7 {[%emt 0:01:06]} 16. Bb5 {[%emt 0:04:52]} Bc8 {[%emt 0:03:53]} 17. a5 {[%emt 0:06:27]} bxa5 {[%emt 0:00:10]} 18. Rxa5 {[%emt 0:02:53]} Qc7 {[%emt 0:00:43]} 19. Ra1 {[%emt 0:00:36]} Ng6 {[%emt 0:08:50]} 20. Bd3 {[%emt 0:02:58]} Nf4 {[%emt 0:01:54]} 21. Bf1 {[%emt 0:02:25]} cxd4 {[%emt 0:05:45]} 22. cxd4 {[%emt 0:00:49]} a5 {[%emt 0:01:37]} 23. g3 {[%emt 0:00:46]} Ng6 {[%emt 0:06:55]} 24. Bd3 {[%emt 0:00:11]} Ne7 {[%emt 0:01:18]} 25. Re3 {[%emt 0:07:04]} Nf5 {[%emt 0:04:49]} 26. Bxf5 {[%emt 0:01:36]} exf5 {[%emt 0:00:02]} 27. Ne5 {[%emt 0:00:49]} f4 {[%emt 0:00:15]} 28. Rf3 {[%emt 0:01:22]} Bf5 {[%emt 0:00:17]} 29. Rxf4 {[%emt 0:00:49]} Qxc2 {[%emt 0:05:43]} 30. Qxc2 {[%emt 0:02:55]} Bxc2 {[%emt 0:00:08]} 31. Rxf8+ {[%emt 0:00:08]} Kxf8 {[%emt 0:00:18]} 32. Nd7+ {[%emt 0:00:59]} Ke7 {[%emt 0:01:11]} 33. Nb6 {[%emt 0:01:23]} Ra6 {[%emt 0:04:42]} 34. Nxd5+ {[%emt 0:31:23]} Kd6 {[%emt 0:00:28]} 35. Nb4 {[%emt 0:00:00]} axb4 {[%emt 0:00:06]} 36. Rxa6+ {[%emt 0:01:00]} Kd5 {[%emt 0:00:47]} 37. Rb6 {[%emt 0:00:00]} b3 {[%emt 0:00:15]} 38. Kf1 {[%emt 0:00:00]} Kxd4 {[%emt 0:04:05]} 39. Ke2 {[%emt 0:00:00]} Kc3 {[%emt 0:00:25]} 40. Rc6+ {[%emt 0:00:00]} Kb2 {[%emt 0:01:12]} 41. Kd2 {[%emt 0:00:00]} Be4 {[%emt 0:00:20]} 42. Re6 {[%emt 0:00:00]} Bc2 {[%emt 0:00:20]} 43. g4 {[%emt 0:00:00]} Bb1 {[%emt 0:00:32]} 44. f4 {[%emt 0:00:00]} Ba2 {[%emt 0:00:18]} 45. Rb6 {[%emt 0:00:00]} Bb1 {[%emt 0:00:21]} 46. f5 {[%emt 0:00:00]} Be4 {[%emt 0:01:00]} 47. f6 {[%emt 0:00:00]} gxf6 {[%emt 0:00:15]} 48. Rxf6 {[%emt 0:00:00]} Bd5 {[%emt 0:00:38]} 49. Rxh6 {[%emt 0:00:00]} 1-0

[Event "1000GM Spring IM-C 2024"]
[Site "New York"]
[Date "2024.03.31"]
[Round "8.5"]
[White "Shundi, Matias"]
[Black "Yudasin, Leonid"]
[Result "1/2-1/2"]
[ECO "B22"]
[WhiteElo "2191"]
[BlackElo "2337"]
[Annotator "ChessBase"]
[PlyCount "66"]
[EventDate "2024.03.26"]
[EventType "tourn"]
[EventCountry "USA"]
[SourceTitle "playchess.com"]
[Source "ChessBase"]
[SourceQuality "1"]
[TimeControl "5400+30"]

1. e4 {[%emt 0:07:30]} c5 {[%emt 0:00:27]} 2. c3 {[%emt 0:00:05]} Nf6 {[%emt 0:00:05]} 3. e5 {[%emt 0:00:04]} Nd5 {[%emt 0:00:07]} 4. Nf3 {[%emt 0:00:09]} d6 {[%emt 0:00:32]} 5. Bb5+ {[%emt 0:00:04]} Bd7 {[%emt 0:00:26]} 6. Bc4 {[%emt 0:00:05]} e6 {[%emt 0:01:10]} 7. d4 {[%emt 0:00:07]} Nb6 {[%emt 0:00:52]} 8. Bb3 {[%emt 0:01:13]} cxd4 {[%emt 0:05:23]} 9. exd6 {[%emt 0:00:25]} Bc6 {[%emt 0:00:22]} 10. Nxd4 {[%emt 0:20:29]} Bxd6 {[%emt 0:07:28]} 11. Nxc6 {[%emt 0:00:46]} Nxc6 {[%emt 0:01:45]} 12. O-O {[%emt 0:00:33]} O-O {[%emt 0:00:43]} 13. Nd2 {[%emt 0:01:41]} Nd5 {[%emt 0:03:31]} 14. g3 {[%emt 0:02:16]} Nf6 {[%emt 0:01:18]} 15. Qe2 {[%emt 0:01:00]} Qe7 {[%emt 0:01:42]} 16. Ne4 {[%emt 0:01:52]} Nxe4 {[%emt 0:01:38]} 17. Qxe4 {[%emt 0:00:11]} Rfe8 {[%emt 0:06:30]} 18. h4 {[%emt 0:01:07]} Qc7 {[%emt 0:01:42]} 19. h5 {[%emt 0:00:46]} Rad8 {[%emt 0:01:06]} 20. Kg2 {[%emt 0:02:27]} a6 {[%emt 0:01:50]} 21. h6 {[%emt 0:11:30]} g6 {[%emt 0:00:47]} 22. Bg5 {[%emt 0:01:05]} Be7 {[%emt 0:01:10]} 23. Be3 {[%emt 0:01:39]} Na5 {[%emt 0:02:08]} 24. Rad1 {[%emt 0:03:00]} Nxb3 {[%emt 0:05:29]} 25. axb3 {[%emt 0:00:09]} Rxd1 {[%emt 0:04:24]} 26. Rxd1 {[%emt 0:00:07]} Rd8 {[%emt 0:01:51]} 27. Rxd8+ {[%emt 0:02:39]} Bxd8 {[%emt 0:00:09]} 28. f3 {[%emt 0:06:15]} Qd7 {[%emt 0:05:30]} 29. g4 {[%emt 0:10:05]} f6 {[%emt 0:02:43]} 30. c4 {[%emt 0:09:12]} Kf7 {[%emt 0:01:09]} 31. Bd4 {[%emt 0:01:02]} Qc6 {[%emt 0:02:01]} 32. Qf4 {[%emt 0:16:57]} Qc7 33. Qe4 Qc6 1/2-1/2

[Event "1000GM Spring IM-C 2024"]
[Site "New York"]
[Date "2024.04.01"]
[Round "9.1"]
[White "Yudasin, Leonid"]
[Black "Pang, Qi"]
[Result "1/2-1/2"]
[ECO "D02"]
[WhiteElo "2337"]
[BlackElo "2195"]
[Annotator "RC"]
[PlyCount "37"]
[EventDate "2024.03.26"]
[EventType "tourn"]
[EventCountry "USA"]
[SourceTitle "playchess.com"]
[Source "ChessBase"]
[SourceQuality "1"]
[TimeControl "5400+30"]

1. d4 {[%emt 0:00:04]} d5 {[%emt 0:00:20]} 2. Nf3 {[%emt 0:00:10]} Nf6 {[%emt 0:00:04]} 3. Bf4 {[%emt 0:00:07]} e6 {[%emt 0:00:14]} 4. e3 {[%emt 0:00:10]} Bd6 {[%emt 0:00:05]} 5. c3 {[%emt 0:00:20]} O-O {[%emt 0:00:09]} 6. Nbd2 {[%emt 0:00:05]} c5 {[%emt 0:00:12]} 7. Bxd6 {[%emt 0:00:10]} Qxd6 {[%emt 0:00:04]} 8. Bd3 {[%emt 0:00:06]} Nc6 {[%emt 0:00:07]} 9. O-O {[%emt 0:00:12]} e5 {[%emt 0:00:08]} 10. dxe5 {[%emt 0:00:04]} Nxe5 {[%emt 0:00:03]} 11. Nxe5 {[%emt 0:00:28]} Qxe5 {[%emt 0:00:02]} 12. h3 {[%emt 0:00:11]} Qe7 {[%emt 0:00:16]} 13. Qc2 {[%emt 0:00:27]} Be6 {[%emt 0:00:15]} 14. Bf5 {[%emt 0:00:19]} Rfe8 {[%emt 0:00:16]} 15. Rfe1 {[%emt 0:00:16]} Qc7 {[%emt 0:00:15]} 16. Bxe6 {[%emt 0:00:33]} Rxe6 {[%emt 0:00:04]} 17. c4 {[%emt 0:00:05]} dxc4 {[%emt 0:00:13]} 18. Qxc4 {[%emt 1:35:43]} Rd8 {[%emt 1:36:43]} 19. Nf3 {[%emt 0:00:30]} 1/2-1/2